[Event "Live Chess"]
[Site "Chess.com"]
[Date "2024.06.01"]
[Round "-"]
[White "TheRedDrag"]
[Black "FlyingChessKestrel13"]
[Result "0-1"]
[WhiteElo "2175"]
[BlackElo "2138"]
[TimeControl "300"]
[EndTime "9:27:37 PDT"]
[Termination "FlyingChessKestrel13 won by resignation"]

1. e4 {[%clk 0:04:58.4]} 1... e5 {[%clk 0:04:58.5]} 2. Nf3 {[%clk 0:04:56.4]}
2... Nf6 {[%clk 0:04:57.6]} 3. Nxe5 {[%clk 0:04:54.7]} 3... d6 {[%clk
0:04:56.4]} 4. Nf3 {[%clk 0:04:53.7]} 4... Nxe4 {[%clk 0:04:55.6]} 5. Nc3 {[%clk
0:04:53.2]} 5... Nxc3 {[%clk 0:04:54.7]} 6. dxc3 {[%clk 0:04:53.1]} 6... Be7
{[%clk 0:04:53.9]} 7. Be3 {[%clk 0:04:52.2]} 7... Bf6 {[%clk 0:04:52.7]} 8. Qd2
{[%clk 0:04:51.5]} 8... O-O {[%clk 0:04:51.2]} 9. Bd3 {[%clk 0:04:49.1]} 9...
Nc6 {[%clk 0:04:47.9]} 10. h4 {[%clk 0:04:47.9]} 10... Bg4 {[%clk 0:04:45.7]}
11. Ng5 {[%clk 0:04:45.4]} 11... Bxg5 {[%clk 0:04:36.3]} 12. hxg5 {[%clk
0:04:44]} 12... g6 {[%clk 0:04:29]} 13. f3 {[%clk 0:04:41.2]} 13... Be6 {[%clk
0:04:25.4]} 14. Qf2 {[%clk 0:04:38.7]} 14... Kg7 {[%clk 0:04:14.7]} 15. Qh4
{[%clk 0:04:26.7]} 15... Rh8 {[%clk 0:04:13]} 16. Qh6+ {[%clk 0:04:20.1]} 16...
Kg8 {[%clk 0:04:11.8]} 17. b4 {[%clk 0:04:16.1]} 17... Qf8 {[%clk 0:03:59.6]}
18. b5 {[%clk 0:04:10.5]} 18... Qxh6 {[%clk 0:03:57.2]} 19. gxh6 {[%clk
0:04:09.5]} 19... Ne5 {[%clk 0:03:56.2]} 20. Bd4 {[%clk 0:04:08.1]} 20... f6
{[%clk 0:03:53]} 21. O-O-O {[%clk 0:04:00.3]} 21... Kf7 {[%clk 0:03:51]} 22.
Rde1 {[%clk 0:03:50.6]} 22... Rhe8 {[%clk 0:03:41.1]} 23. Bxe5 {[%clk
0:03:34.9]} 23... dxe5 {[%clk 0:03:38.4]} 24. a4 {[%clk 0:03:33.6]} 24... Rad8
{[%clk 0:03:20.4]} 25. g4 {[%clk 0:03:30.2]} 25... Bd5 {[%clk 0:03:18.1]} 26.
Rhf1 {[%clk 0:03:26.8]} 26... c5 {[%clk 0:03:09.8]} 27. c4 {[%clk 0:03:23]}
27... Be6 {[%clk 0:03:08.9]} 28. a5 {[%clk 0:03:16.6]} 28... Rd4 {[%clk
0:03:07.4]} 29. Re4 {[%clk 0:03:14.3]} 29... Red8 {[%clk 0:03:06.1]} 30. Kb2
{[%clk 0:03:05.1]} 30... Rxe4 {[%clk 0:03:03.5]} 31. fxe4 {[%clk 0:03:04.9]}
31... Ke7 {[%clk 0:03:01.9]} 32. g5 {[%clk 0:02:55.7]} 32... fxg5 {[%clk
0:03:00.2]} 33. Kc3 {[%clk 0:02:55.3]} 33... g4 {[%clk 0:02:57.4]} 34. Be2
{[%clk 0:02:51.4]} 34... Rf8 {[%clk 0:02:56.1]} 35. Rg1 {[%clk 0:02:26.1]} 35...
Rf4 {[%clk 0:02:49.4]} 36. Kd3 {[%clk 0:02:25.2]} 36... g5 {[%clk 0:02:46]} 37.
Ke3 {[%clk 0:02:19.8]} 37... Kf6 {[%clk 0:02:44.8]} 38. Rd1 {[%clk 0:02:14.9]}
38... Kg6 {[%clk 0:02:31.4]} 39. Rd6 {[%clk 0:02:10.1]} 39... Rf6 {[%clk
0:02:30.5]} 40. c3 {[%clk 0:02:00]} 40... Kf7 {[%clk 0:02:28.5]} 41. b6 {[%clk
0:01:48.9]} 41... a6 {[%clk 0:02:24]} 42. Bd1 {[%clk 0:01:42.9]} 42... Rxh6
{[%clk 0:02:12]} 43. Bxg4 {[%clk 0:01:39]} 43... Rf6 {[%clk 0:02:06.4]} 44.
Bxe6+ {[%clk 0:01:33.9]} 44... Rxe6 {[%clk 0:02:05]} 45. Rd7+ {[%clk 0:01:33]}
45... Re7 {[%clk 0:02:04.3]} 46. Rd5 {[%clk 0:01:32]} 46... h5 {[%clk 0:02:01]}
47. Rxc5 {[%clk 0:01:31.1]} 47... h4 {[%clk 0:02:00.2]} 48. Kf3 {[%clk 0:01:29]}
48... Ke6 {[%clk 0:01:55.4]} 49. Rc8 {[%clk 0:01:20.9]} 49... Rh7 {[%clk
0:01:48.4]} 50. Re8+ {[%clk 0:01:14.5]} 50... Kd6 {[%clk 0:01:44.1]} 51. Kg2
{[%clk 0:00:56.2]} 51... g4 {[%clk 0:01:40.8]} 52. Rg8 {[%clk 0:00:54.2]} 52...
h3+ {[%clk 0:01:38.9]} 53. Kh2 {[%clk 0:00:52.4]} 53... Kc5 {[%clk 0:01:34.5]}
54. Rxg4 {[%clk 0:00:49.2]} 54... Kxc4 {[%clk 0:01:33.3]} 55. Rg5 {[%clk
0:00:48.4]} 55... Re7 {[%clk 0:01:29.8]} 56. Kxh3 {[%clk 0:00:46.5]} 56... Kxc3
{[%clk 0:01:29.1]} 57. Kg4 {[%clk 0:00:40.8]} 57... Kb4 {[%clk 0:01:27.9]} 58.
Rg6 {[%clk 0:00:39.2]} 58... Kxa5 {[%clk 0:01:26.7]} 59. Kf5 {[%clk 0:00:38.7]}
59... Kb5 {[%clk 0:01:25.7]} 60. Rg3 {[%clk 0:00:33.7]} 60... Kxb6 {[%clk
0:01:23.1]} 61. Kf6 {[%clk 0:00:32.9]} 61... Re8 {[%clk 0:01:21.3]} 62. Kf7
{[%clk 0:00:29.1]} 62... Rc8 {[%clk 0:01:19.7]} 63. Ke6 {[%clk 0:00:27.8]} 63...
Rc5 {[%clk 0:01:17.6]} 64. Rb3+ {[%clk 0:00:25.2]} 64... Kc6 {[%clk 0:01:15.4]}
65. Rb2 {[%clk 0:00:22]} 65... a5 {[%clk 0:01:13.4]} 66. Rd2 {[%clk 0:00:20.8]}
66... a4 {[%clk 0:01:09.9]} 67. Ra2 {[%clk 0:00:19]} 67... b5 {[%clk 0:01:08.6]}
68. Rb2 {[%clk 0:00:18.9]} 68... a3 {[%clk 0:01:07]} 69. Rd2 {[%clk 0:00:17.3]}
69... b4 {[%clk 0:01:05]} 70. Rd6+ {[%clk 0:00:16.8]} 70... Kb5 {[%clk
0:01:03.8]} 71. Rd5 {[%clk 0:00:14]} 71... a2 {[%clk 0:01:00.7]} 72. Rxe5 {[%clk
0:00:12.3]} 72... Rxe5+ {[%clk 0:00:58.4]} 73. Kxe5 {[%clk 0:00:12.2]} 73...
a1=Q+ {[%clk 0:00:57.1]} 74. Kf5 {[%clk 0:00:12.1]} 74... b3 {[%clk 0:00:55.4]}
75. e5 {[%clk 0:00:11.7]} 75... b2 {[%clk 0:00:54.8]} 76. Ke6 {[%clk 0:00:11.6]}
76... b1=Q {[%clk 0:00:53.2]} 77. Kd6 {[%clk 0:00:11.5]} 77... Qd3+ {[%clk
0:00:51.5]} 78. Ke6 {[%clk 0:00:10.2]} 78... Qa6+ {[%clk 0:00:50.2]} 79. Kf7
{[%clk 0:00:09.2]} 79... Qf5+ {[%clk 0:00:47.2]} 80. Ke7 {[%clk 0:00:08.9]} 0-1

[Event "Live Chess"]
[Site "Chess.com"]
[Date "2024.06.01"]
[Round "-"]
[White "Bradfield133"]
[Black "Tatarinov_Maxim"]
[Result "0-1"]
[WhiteElo "2043"]
[BlackElo "2282"]
[TimeControl "300"]
[EndTime "9:27:41 PDT"]
[Termination "Tatarinov_Maxim won by resignation"]

1. c4 {[%clk 0:04:55.9]} 1... Nf6 {[%clk 0:04:58.4]} 2. g3 {[%clk 0:04:54.7]}
2... g6 {[%clk 0:04:57.3]} 3. Bg2 {[%clk 0:04:53.6]} 3... Bg7 {[%clk 0:04:56.2]}
4. Nc3 {[%clk 0:04:51.4]} 4... O-O {[%clk 0:04:55.6]} 5. e4 {[%clk 0:04:49.5]}
5... c5 {[%clk 0:04:55.5]} 6. Nge2 {[%clk 0:04:47.3]} 6... Nc6 {[%clk
0:04:54.7]} 7. O-O {[%clk 0:04:45.9]} 7... a6 {[%clk 0:04:53.7]} 8. a3 {[%clk
0:04:44.6]} 8... Rb8 {[%clk 0:04:52.5]} 9. Rb1 {[%clk 0:04:43.4]} 9... b5 {[%clk
0:04:49.8]} 10. cxb5 {[%clk 0:04:42.2]} 10... axb5 {[%clk 0:04:49.7]} 11. b4
{[%clk 0:04:39.8]} 11... c4 {[%clk 0:04:45.3]} 12. a4 {[%clk 0:04:23.9]} 12...
bxa4 {[%clk 0:04:40.2]} 13. b5 {[%clk 0:04:22.5]} 13... Ne5 {[%clk 0:04:35.4]}
14. Qxa4 {[%clk 0:04:16.9]} 14... d6 {[%clk 0:04:28.9]} 15. h3 {[%clk
0:03:53.2]} 15... Be6 {[%clk 0:04:24.2]} 16. Nd5 {[%clk 0:03:41.3]} 16... Nxd5
{[%clk 0:04:15.2]} 17. exd5 {[%clk 0:03:38.6]} 17... Bf5 {[%clk 0:04:15.1]} 18.
Rb4 {[%clk 0:03:19.2]} 18... Bd3 {[%clk 0:04:09.7]} 19. Re1 {[%clk 0:03:15.4]}
19... Ra8 {[%clk 0:04:00.6]} 20. Qd1 {[%clk 0:03:08.7]} 20... Ra1 {[%clk
0:03:57.7]} 21. Nf4 {[%clk 0:02:54.3]} 21... Qa5 {[%clk 0:03:51.2]} 22. Rb2
{[%clk 0:02:31.1]} 22... Rb8 {[%clk 0:03:38.7]} 23. Bf1 {[%clk 0:02:05.3]} 23...
Rxc1 {[%clk 0:03:17.2]} 24. Qxc1 {[%clk 0:02:01.4]} 24... Nf3+ {[%clk
0:03:16.3]} 0-1

[Event "Live Chess"]
[Site "Chess.com"]
[Date "2024.06.01"]
[Round "-"]
[White "PatientChessPapa"]
[Black "dl_chess"]
[Result "0-1"]
[WhiteElo "888"]
[BlackElo "1163"]
[TimeControl "300"]
[EndTime "9:27:48 PDT"]
[Termination "dl_chess won on time"]

1. e4 {[%clk 0:04:56.8]} 1... e6 {[%clk 0:04:58.6]} 2. d4 {[%clk 0:04:54.6]}
2... d5 {[%clk 0:04:57.7]} 3. exd5 {[%clk 0:04:53.5]} 3... exd5 {[%clk
0:04:55.5]} 4. c4 {[%clk 0:04:52.3]} 4... Nf6 {[%clk 0:04:49]} 5. Nc3 {[%clk
0:04:50.7]} 5... Be6 {[%clk 0:04:35.2]} 6. cxd5 {[%clk 0:04:44.4]} 6... Nxd5
{[%clk 0:04:33]} 7. Nf3 {[%clk 0:04:34]} 7... Bb4 {[%clk 0:04:28.9]} 8. Bg5
{[%clk 0:04:11.4]} 8... f6 {[%clk 0:04:20.4]} 9. Bd2 {[%clk 0:04:08.5]} 9... O-O
{[%clk 0:04:09.5]} 10. Be2 {[%clk 0:04:06.7]} 10... Re8 {[%clk 0:04:07]} 11. O-O
{[%clk 0:04:01.2]} 11... Nc6 {[%clk 0:04:02.6]} 12. a3 {[%clk 0:03:57.7]} 12...
Nxc3 {[%clk 0:03:52.7]} 13. bxc3 {[%clk 0:03:51.5]} 13... Ba5 {[%clk 0:03:47.1]}
14. Re1 {[%clk 0:03:29.5]} 14... Bf5 {[%clk 0:03:36.3]} 15. Bc4+ {[%clk
0:03:21.8]} 15... Kh8 {[%clk 0:03:33.8]} 16. d5 {[%clk 0:02:50.9]} 16... Ne5
{[%clk 0:03:25.6]} 17. Ba2 {[%clk 0:02:26.7]} 17... Bb6 {[%clk 0:03:11.7]} 18.
c4 {[%clk 0:01:54.2]} 18... Nd3 {[%clk 0:03:06.8]} 19. Rxe8+ {[%clk 0:01:42.3]}
19... Qxe8 {[%clk 0:03:05.4]} 20. Be3 {[%clk 0:00:58.4]} 20... Bxe3 {[%clk
0:03:00.8]} 21. fxe3 {[%clk 0:00:14.7]} 21... Qxe3+ {[%clk 0:02:59.2]} 0-1

[Event "Live Chess"]
[Site "Chess.com"]
[Date "2024.06.01"]
[Round "-"]
[White "Yarigo"]
[Black "KyryloPoluliakh"]
[Result "1-0"]
[WhiteElo "2448"]
[BlackElo "1464"]
[TimeControl "300"]
[EndTime "9:27:51 PDT"]
[Termination "Yarigo won by resignation"]

1. d4 {[%clk 0:04:55]} 1... Nf6 {[%clk 0:04:55.3]} 2. Nf3 {[%clk 0:04:52.5]}
2... g6 {[%clk 0:04:54.3]} 3. Bf4 {[%clk 0:04:48.5]} 3... Bg7 {[%clk 0:04:53.3]}
4. Nc3 {[%clk 0:04:47.1]} 4... O-O {[%clk 0:04:51]} 5. Qd2 {[%clk 0:04:45.7]}
5... Re8 {[%clk 0:04:47.3]} 6. Bh6 {[%clk 0:04:43.8]} 6... Bh8 {[%clk
0:04:45.3]} 7. e4 {[%clk 0:04:40.7]} 7... d6 {[%clk 0:04:42]} 8. h3 {[%clk
0:04:37.6]} 8... e5 {[%clk 0:04:32.3]} 9. dxe5 {[%clk 0:04:34.1]} 9... dxe5
{[%clk 0:04:30.7]} 10. Qxd8 {[%clk 0:04:33.7]} 10... Rxd8 {[%clk 0:04:29]} 11.
Bc4 {[%clk 0:04:31]} 11... Ne8 {[%clk 0:03:47.8]} 12. Ng5 {[%clk 0:04:07]} 12...
Nd6 {[%clk 0:03:41.9]} 13. Nd5 {[%clk 0:04:05.5]} 13... Rd7 {[%clk 0:03:21.1]}
14. O-O-O {[%clk 0:04:03.3]} 14... Nc6 {[%clk 0:03:00.9]} 15. Nxc7 {[%clk
0:03:43.2]} 15... Nxc4 {[%clk 0:02:48.7]} 16. Rxd7 {[%clk 0:03:38.1]} 16... Bxd7
{[%clk 0:02:44]} 17. Nxa8 {[%clk 0:03:36.4]} 17... f6 {[%clk 0:02:26.6]} 18. Rd1
{[%clk 0:03:30.4]} 18... Bc8 {[%clk 0:02:15]} 19. Nf3 {[%clk 0:03:25.9]} 19...
g5 {[%clk 0:02:11.1]} 20. b3 {[%clk 0:03:21.6]} 20... N4a5 {[%clk 0:01:57.5]}
21. Nc7 {[%clk 0:03:15.3]} 21... Kf7 {[%clk 0:01:52.5]} 22. Nd5 {[%clk
0:03:02.7]} 22... Kg6 {[%clk 0:01:47.6]} 23. Bf8 {[%clk 0:02:58.8]} 23... g4
{[%clk 0:01:39]} 24. hxg4 {[%clk 0:02:54.8]} 24... Bxg4 {[%clk 0:01:37.4]} 25.
c3 {[%clk 0:02:49.9]} 25... b6 {[%clk 0:01:31.9]} 26. Ne3 {[%clk 0:02:42.8]}
26... Bc8 {[%clk 0:01:21.5]} 27. Rd6 {[%clk 0:02:19.2]} 27... Kf7 {[%clk
0:01:08.9]} 28. b4 {[%clk 0:02:09]} 28... Kxf8 {[%clk 0:01:01]} 29. bxa5 {[%clk
0:02:07.1]} 29... Nxa5 {[%clk 0:00:56.3]} 30. Rd8+ {[%clk 0:02:05]} 30... Kf7
{[%clk 0:00:50.8]} 31. Rxc8 {[%clk 0:02:02.6]} 31... Bg7 {[%clk 0:00:47.7]} 32.
Rc7+ {[%clk 0:02:00.4]} 1-0

[Event "Live Chess"]
[Site "Chess.com"]
[Date "2024.06.01"]
[Round "-"]
[White "NAZRIZ1977"]
[Black "gunslinger222"]
[Result "0-1"]
[WhiteElo "2122"]
[BlackElo "2279"]
[TimeControl "300"]
[EndTime "9:28:01 PDT"]
[Termination "gunslinger222 won by resignation"]

1. e4 {[%clk 0:04:57.1]} 1... e6 {[%clk 0:04:59.2]} 2. d3 {[%clk 0:04:55.9]}
2... d5 {[%clk 0:04:59.1]} 3. Nd2 {[%clk 0:04:54.9]} 3... Nf6 {[%clk 0:04:57.1]}
4. Ngf3 {[%clk 0:04:53.9]} 4... Be7 {[%clk 0:04:55.9]} 5. g3 {[%clk 0:04:51.3]}
5... c5 {[%clk 0:04:54.1]} 6. Bg2 {[%clk 0:04:50.3]} 6... Nc6 {[%clk 0:04:53.7]}
7. O-O {[%clk 0:04:49.1]} 7... h6 {[%clk 0:04:45.3]} 8. Re1 {[%clk 0:04:46.3]}
8... O-O {[%clk 0:04:41]} 9. e5 {[%clk 0:04:43.3]} 9... Nh7 {[%clk 0:04:39.4]}
10. Nf1 {[%clk 0:04:41.8]} 10... f5 {[%clk 0:04:30.7]} 11. exf6 {[%clk
0:04:38.5]} 11... Bxf6 {[%clk 0:04:25.4]} 12. Bf4 {[%clk 0:04:33.5]} 12... Bxb2
{[%clk 0:04:16.3]} 13. h4 {[%clk 0:04:30.4]} 13... Bxa1 {[%clk 0:04:10.4]} 14.
Qxa1 {[%clk 0:04:29.1]} 14... Nf6 {[%clk 0:04:09.2]} 15. N1h2 {[%clk 0:04:25.4]}
15... d4 {[%clk 0:04:06.3]} 16. Qc1 {[%clk 0:04:19.1]} 16... Qe7 {[%clk
0:03:56.8]} 17. g4 {[%clk 0:04:14.8]} 17... Nd5 {[%clk 0:03:51.9]} 18. Bd2
{[%clk 0:03:55.2]} 18... Qf7 {[%clk 0:03:46.9]} 19. h5 {[%clk 0:03:31.7]} 19...
Nf4 {[%clk 0:03:44]} 20. g5 {[%clk 0:03:26.2]} 20... Nxg2 {[%clk 0:03:37.6]} 21.
g6 {[%clk 0:03:17.4]} 21... Qf5 {[%clk 0:03:28.6]} 22. Kxg2 {[%clk 0:03:02.6]}
22... Qxh5 {[%clk 0:03:26.7]} 23. Rg1 {[%clk 0:03:02.2]} 23... e5 {[%clk
0:03:21.6]} 24. Kf1 {[%clk 0:02:55.5]} 24... Rxf3 {[%clk 0:03:19]} 25. Nxf3
{[%clk 0:02:46.8]} 25... Qxf3 {[%clk 0:03:18.9]} 26. Rg3 {[%clk 0:02:46.6]}
26... Qh1+ {[%clk 0:03:06.4]} 0-1

[Event "Live Chess"]
[Site "Chess.com"]
[Date "2024.06.01"]
[Round "-"]
[White "Ferrarifan27"]
[Black "13Alexey"]
[Result "1-0"]
[WhiteElo "2077"]
[BlackElo "739"]
[TimeControl "300"]
[EndTime "9:28:04 PDT"]
[Termination "Ferrarifan27 won by resignation"]

1. e4 {[%clk 0:04:57.1]} 1... e5 {[%clk 0:04:58.7]} 2. Nf3 {[%clk 0:04:55.6]}
2... Nc6 {[%clk 0:04:57]} 3. Bb5 {[%clk 0:04:54.2]} 3... Nf6 {[%clk 0:04:55]} 4.
O-O {[%clk 0:04:51.9]} 4... Bc5 {[%clk 0:04:52.2]} 5. Bxc6 {[%clk 0:04:46.3]}
5... dxc6 {[%clk 0:04:49.9]} 6. Nxe5 {[%clk 0:04:45.6]} 6... Qd4 {[%clk
0:04:43.9]} 7. Nd3 {[%clk 0:04:42.5]} 7... O-O {[%clk 0:04:39.9]} 8. Nxc5 {[%clk
0:04:41.3]} 8... Qxc5 {[%clk 0:04:38.5]} 9. d4 {[%clk 0:04:40.4]} 9... Qb5
{[%clk 0:04:33.7]} 10. Nc3 {[%clk 0:04:38.6]} 10... Qb6 {[%clk 0:04:28.4]} 11.
Rb1 {[%clk 0:04:31.7]} 11... Bg4 {[%clk 0:04:24.6]} 12. f3 {[%clk 0:04:28.8]}
12... Bh5 {[%clk 0:04:17.7]} 13. Kh1 {[%clk 0:04:27.6]} 13... Rad8 {[%clk
0:04:15.7]} 14. Be3 {[%clk 0:04:25]} 14... Qa6 {[%clk 0:04:06.9]} 15. Qe2 {[%clk
0:04:21.4]} 15... Qa5 {[%clk 0:04:03.2]} 16. Rfd1 {[%clk 0:04:08.1]} 16... h6
{[%clk 0:03:55.5]} 17. Qf2 {[%clk 0:04:05.1]} 17... b6 {[%clk 0:03:52.2]} 18.
Qg3 {[%clk 0:04:00.7]} 18... Kh8 {[%clk 0:03:46.8]} 19. Qh4 {[%clk 0:03:53.7]}
19... Bg6 {[%clk 0:03:39.3]} 20. Bxh6 {[%clk 0:03:50.5]} 20... gxh6 {[%clk
0:03:35.4]} 21. Qxf6+ {[%clk 0:03:49.2]} 21... Kg8 {[%clk 0:03:25.6]} 22. a3
{[%clk 0:03:34.4]} 22... Rd6 {[%clk 0:03:19.9]} 23. Qf4 {[%clk 0:03:30.4]} 23...
c5 {[%clk 0:03:13.7]} 24. dxc5 {[%clk 0:03:27.8]} 24... Qxc5 {[%clk 0:03:09.9]}
25. Rxd6 {[%clk 0:03:25.3]} 25... cxd6 {[%clk 0:03:07.1]} 26. Rd1 {[%clk
0:03:23]} 26... Rd8 {[%clk 0:03:01.3]} 27. Qxh6 {[%clk 0:03:21.3]} 1-0

[Event "Live Chess"]
[Site "Chess.com"]
[Date "2024.06.01"]
[Round "-"]
[White "nitrofish07"]
[Black "jumush"]
[Result "1-0"]
[WhiteElo "2118"]
[BlackElo "1733"]
[TimeControl "300"]
[EndTime "9:28:40 PDT"]
[Termination "nitrofish07 won by resignation"]

1. e4 {[%clk 0:04:58.7]} 1... d5 {[%clk 0:04:58.7]} 2. exd5 {[%clk 0:04:57.6]}
2... Qxd5 {[%clk 0:04:53.8]} 3. Nc3 {[%clk 0:04:56.3]} 3... Qa5 {[%clk
0:04:51.2]} 4. b4 {[%clk 0:04:55.1]} 4... Qxb4 {[%clk 0:04:46.6]} 5. Nb5 {[%clk
0:04:54.1]} 5... Qa5 {[%clk 0:04:44.2]} 6. Bc4 {[%clk 0:04:52.7]} 6... c6 {[%clk
0:04:38.1]} 7. Bxf7+ {[%clk 0:04:45.4]} 7... Kxf7 {[%clk 0:04:34.9]} 8. Qh5+
{[%clk 0:04:44.6]} 8... g6 {[%clk 0:04:26.1]} 9. Nd6+ {[%clk 0:04:43.6]} 9...
exd6 {[%clk 0:04:21.5]} 10. Qxa5 {[%clk 0:04:42.7]} 10... Bg7 {[%clk 0:04:16.7]}
11. Qc7+ {[%clk 0:04:40.9]} 11... Nd7 {[%clk 0:04:12.9]} 12. Nf3 {[%clk
0:04:33.7]} 12... Nf6 {[%clk 0:04:10.6]} 13. Qxd6 {[%clk 0:04:28.1]} 13... Re8+
{[%clk 0:04:07.5]} 14. Kf1 {[%clk 0:04:23.2]} 14... Nb6 {[%clk 0:04:02.7]} 15.
g3 {[%clk 0:04:05.7]} 15... Bh3+ {[%clk 0:03:56.8]} 16. Kg1 {[%clk 0:04:04.3]}
16... Rad8 {[%clk 0:03:54.4]} 17. Qb4 {[%clk 0:03:47.4]} 17... Re4 {[%clk
0:03:50.4]} 18. Ng5+ {[%clk 0:03:45.4]} 18... Kg8 {[%clk 0:03:41.1]} 19. Nxe4
{[%clk 0:03:43.7]} 19... Re8 {[%clk 0:03:38.2]} 20. Nxf6+ {[%clk 0:03:32.8]}
20... Bxf6 {[%clk 0:03:35.9]} 21. Bb2 {[%clk 0:03:32.5]} 21... Bxb2 {[%clk
0:03:29.7]} 22. Qxb2 {[%clk 0:03:32.4]} 1-0

[Event "Live Chess"]
[Site "Chess.com"]
[Date "2024.06.01"]
[Round "-"]
[White "LanceMaster23"]
[Black "elephantgerrald"]
[Result "1-0"]
[WhiteElo "1832"]
[BlackElo "714"]
[TimeControl "300"]
[EndTime "9:28:51 PDT"]
[Termination "LanceMaster23 won by checkmate"]

1. Nf3 {[%clk 0:04:52.3]} 1... d5 {[%clk 0:04:58.1]} 2. d4 {[%clk 0:04:50.8]}
2... Nc6 {[%clk 0:04:56.8]} 3. Bf4 {[%clk 0:04:49.8]} 3... Bg4 {[%clk
0:04:54.6]} 4. Nbd2 {[%clk 0:04:47.2]} 4... Bxf3 {[%clk 0:04:53.2]} 5. Nxf3
{[%clk 0:04:46.2]} 5... Nf6 {[%clk 0:04:50.8]} 6. e3 {[%clk 0:04:44.4]} 6... e6
{[%clk 0:04:50.1]} 7. Be2 {[%clk 0:04:43.4]} 7... g6 {[%clk 0:04:49.2]} 8. O-O
{[%clk 0:04:40.7]} 8... Bg7 {[%clk 0:04:48.7]} 9. c3 {[%clk 0:04:39.6]} 9... O-O
{[%clk 0:04:48]} 10. Qb3 {[%clk 0:04:38.6]} 10... b6 {[%clk 0:04:46.8]} 11. Rfe1
{[%clk 0:04:36.6]} 11... a5 {[%clk 0:04:45.9]} 12. a4 {[%clk 0:04:35.3]} 12...
Ne4 {[%clk 0:04:41.5]} 13. Rad1 {[%clk 0:04:30.2]} 13... Nf6 {[%clk 0:04:36.7]}
14. Ne5 {[%clk 0:04:28.7]} 14... Nxe5 {[%clk 0:04:35.1]} 15. Bxe5 {[%clk
0:04:28.6]} 15... c6 {[%clk 0:04:32]} 16. Bf3 {[%clk 0:04:21.5]} 16... Ra6
{[%clk 0:04:24.9]} 17. e4 {[%clk 0:04:10.8]} 17... h5 {[%clk 0:04:20.8]} 18.
exd5 {[%clk 0:04:07.6]} 18... exd5 {[%clk 0:04:17.9]} 19. h3 {[%clk 0:03:40.6]}
19... Re8 {[%clk 0:04:11.7]} 20. Be2 {[%clk 0:03:14.7]} 20... b5 {[%clk
0:04:05.3]} 21. axb5 {[%clk 0:03:12.2]} 21... Rb6 {[%clk 0:04:03.7]} 22. Qa4
{[%clk 0:03:10.2]} 22... cxb5 {[%clk 0:04:00.1]} 23. Bxb5 {[%clk 0:03:08.9]}
23... Re7 {[%clk 0:03:58.4]} 24. Qxa5 {[%clk 0:03:02.7]} 24... Rb8 {[%clk
0:03:49.8]} 25. Qxd8+ {[%clk 0:03:00.6]} 25... Rxd8 {[%clk 0:03:48.6]} 26. Bxf6
{[%clk 0:02:57.3]} 26... Bxf6 {[%clk 0:03:47.2]} 27. Rxe7 {[%clk 0:02:56.4]}
27... Bxe7 {[%clk 0:03:45.9]} 28. Re1 {[%clk 0:02:56]} 28... Re8 {[%clk
0:03:44.7]} 29. Bxe8 {[%clk 0:02:54.4]} 29... Kf8 {[%clk 0:03:43.7]} 30. Bc6
{[%clk 0:02:52.4]} 30... Kg7 {[%clk 0:03:41.3]} 31. Rxe7 {[%clk 0:02:50.1]}
31... Kf6 {[%clk 0:03:40.2]} 32. Re5 {[%clk 0:02:49.1]} 32... Kg7 {[%clk
0:03:37.9]} 33. Bxd5 {[%clk 0:02:48.2]} 33... Kf6 {[%clk 0:03:36.8]} 34. b4
{[%clk 0:02:44.9]} 34... Kg7 {[%clk 0:03:36.7]} 35. b5 {[%clk 0:02:44.1]} 35...
Kf6 {[%clk 0:03:36.6]} 36. b6 {[%clk 0:02:43.3]} 36... Kg7 {[%clk 0:03:36.5]}
37. Re7 {[%clk 0:02:41.3]} 37... Kf6 {[%clk 0:03:36.4]} 38. Rxf7+ {[%clk
0:02:40.5]} 38... Kg5 {[%clk 0:03:34.3]} 39. b7 {[%clk 0:02:38.2]} 39... Kh6
{[%clk 0:03:32.8]} 40. b8=Q {[%clk 0:02:35.7]} 40... Kg5 {[%clk 0:03:31.8]} 41.
Qf4# {[%clk 0:02:33.2]} 1-0